Cogmind - Beta 14 @@@ ROGUE MODE // 2024.11.10 @ 06:32:51 Player: Blue Result: Destroyed by P-60 Hacker with Shock Rifle Performance ------------- Evolutions (0) 0 Regions Visited (3) 600 Robots Destroyed (11) 55 Value Destroyed (189) 189 Prototype IDs (0) 0 Alien Tech Used (0) 0 Bonus (0) 0 TOTAL SCORE: 844 Bonus ------- None Cogmind --------- Core Integrity 0/250 Matter 226/300 Energy 100/100 System Corruption 2% Temperature Cool (0) Movement Core (50) Location -9/Recycling Parts ------- > --- POWER (1) -------- (None) > --- PROPULSION (2) --- (None) > --- UTILITY (2) ------ (None) > --- WEAPON (2) ------- (None) > --- INVENTORY (5) ---- VTOL Module Medium Matter Pod (0) Tractor Beam Shotgun Shotgun Peak State ------------ > --- POWER ------------ Light Ion Engine > --- PROPULSION ------- Hover Unit Hover Unit > --- UTILITY ---------- Small Storage Unit Hacking Suite > --- WEAPON ----------- Shotgun Shotgun > --- INVENTORY -------- VTOL Module VTOL Module Medium Matter Pod Seismic Detector Tractor Beam Light Assault Rifle Shotgun Mining Laser [Rating: 12] Favorites ----------- Power Light Ion Engine Engine Light Ion Engine Propulsion Hover Unit Leg Aluminum Leg Hover Unit Hover Unit Flight Unit VTOL Module Utility Hacking Suite Device Seismic Detector Storage Small Storage Unit Hackware Hacking Suite Weapon Shotgun Ballistic Gun Shotgun Special Weapon Mining Laser Build | -11 -10 -10 -9 ------- Run | Yrd Mat Sub Rec Slots Evolved . | . . . . Power . | . . . . Propulsion . | . . . . Utility . | . . . . Weapon . | . . . . Parts Attached 21 | . 21 . . Power 1 | . 1 . . Engine 1 | . 1 . . Core . | . . . . Reactor . | . . . . Propulsion 8 | . 8 . . Treads . | . . . . Leg 2 | . 2 . . Wheel . | . . . . Hover 4 | . 4 . . Flight 2 | . 2 . . Utility 3 | . 3 . . Device 1 | . 1 . . Storage 1 | . 1 . . Processor . | . . . . Hackware 1 | . 1 . . Protection . | . . . . Artifact . | . . . . Weapon 9 | . 9 . . Energy Gun . | . . . . Energy Cannon . | . . . . Ballistic Gun 7 | . 7 . . Ballistic Cannon . | . . . . Launcher . | . . . . Special Weapon 2 | . 2 . . Impact Weapon . | . . . . Slashing Weapon . | . . . . Piercing Weapon . | . . . . Special Melee Weapon . | . . . . Unidentified Prototypes . | . . . . Parts Lost 5 | . 5 . . Power 1 | . 1 . . Propulsion 2 | . 2 . . Utility . | . . . . Weapon 2 | . 2 . . Highest Loss Streak 3 | . 3 . . To Critical Strikes . | . . . . Average Slot Usage (%) 69 | . 87 42 28 Engine 6 | . 10 . . Leg 5 | . 2 14 5 Hover 14 | . 21 . . Device 1 | . 2 . . Storage 11 | . 10 14 11 Hackware 13 | . 13 14 11 Ballistic Gun 12 | . 19 . . Special Weapon 3 | . 5 . . Peak Build Rating 12 | . 12 6 6 Average Rating 8 | . 9 6 4 On Entrance 3 | . . 6 6 Naked Turns 58 | . 24 . 34 Heaviest Build 14 | . 14 5 5 Greatest Support 12 | 3 12 10 10 Greatest Overweight (x) 1 | . 1 . 1 Average Overweight (x) . | . . . . Largest Inventory Capacity 8 | 5 8 8 8 Average Capacity 7 | 5 7 8 7 Most Carried 8 | . 8 8 8 Average Carried 6 | . 6 8 7 Final Capacity 8 | 5 8 8 5 Final Carried 8 | . 8 8 5 Class Distribution -------------------- 100% | Mutant Dominant Class ---------------- Mutant | -10/Materials Mutant | -10/Subcaves Mutant | -9/Recycling Resources | -11 -10 -10 -9 ----------- Run | Yrd Mat Sub Rec Matter Collected 504 | 79 300 125 . Remotely . | . . . . Salvage Created 244 | . 244 . . Parts 16 | . 16 . . Haulers Intercepted 1 | . 1 . . Recyclers Shooed . | . . . . Parts Field Recycled . | . . . . Retrieved Matter . | . . . . Parts Self-Destructed 8 | . . 8 . Prevented . | . . . . Kills | -11 -10 -10 -9 ------- Run | Yrd Mat Sub Rec Combat Hostiles Destroyed 4 | . 4 . . Guns 4 | . 4 . . Classes Destroyed 5 | . 5 . . Worker 4 | . 4 . . Builder 1 | . 1 . . Hauler 1 | . 1 . . Operator 1 | . 1 . . Grunt 4 | . 4 . . Best Kill Streak 2 | . 2 . . Combat Bots Only 2 | . 2 . . Max Kills in Single Turn 1 | . 1 . . Gunslinging . | . . . . Exploded . | . . . . Melee . | . . . . Uniques/NPCs Destroyed . | . . . . Combat | -11 -10 -10 -9 -------- Run | Yrd Mat Sub Rec Hostile Shots Fired 74 | . 59 9 6 Missed 25 | . 15 5 5 Damage Taken 642 | . 596 30 16 Core 265 | . 231 18 16 Absorbed by Shields . | . . . . Core Remaining (%) 100 | 100 . . . Volleys Fired 59 | . 59 . . Largest 2 | . 2 . . Hottest 100 | . 100 . . Shots Fired 86 | . 86 . . Gun 74 | . 74 . . Cannon . | . . . . Launcher . | . . . . Special 12 | . 12 . . Kinetic 74 | . 74 . . Thermal 12 | . 12 . . Explosive . | . . . . Electromagnetic . | . . . . Robot Hit Streak 11 | . 11 . . Robot Miss Streak 5 | . 5 . . Penetration Max . | . . . . Secondary Targets . | . . . . Shots Hit Robots 63 | . 63 . . Core Hits 22 | . 22 . . Critical Kills . | . . . . Critical Parts Destroyed 1 | . 1 . . Critical Strikes 1 | . 1 . . Destroy 1 | . 1 . . Melee Attacks . | . . . . Impact . | . . . . Slashing . | . . . . Piercing . | . . . . Sneak Attacks . | . . . . Combat Hostiles . | . . . . Follow-up Attacks . | . . . . Damage Inflicted 871 | . 871 . . Guns 639 | . 639 . . Cannons . | . . . . Explosions . | . . . . Melee . | . . . . Ramming 16 | . 16 . . Kinetic 639 | . 639 . . Thermal 216 | . 216 . . Explosive . | . . . . Electromagnetic . | . . . . Impact . | . . . . Slashing . | . . . . Piercing . | . . . . Highest Corruption 2 | . 2 2 2 Average Corruption 2 | . 2 2 2 Corruption Purged . | . . . . Corruption Blocked . | . . . . Effects 5 | . . 2 3 Message Errors 1 | . . . 1 Matter Fused 1 | . . . 1 Parts Rejected 1 | . . . 1 Data Loss (minor) 2 | . . 2 . Overload Shots . | . . . . Overflow Damage 8 | . 8 . . Projectiles 8 | . 8 . . Explosions . | . . . . Melee . | . . . . Knockbacks . | . . . . Impact . | . . . . Kinetic . | . . . . Secondary . | . . . . Self-Inflicted Damage 7 | . 7 . . Shots . | . . . . Rammed 2 | . 2 . . Targets Rammed 2 | . 2 . . Kicked . | . . . . Crushed . | . . . . Highest Temperature 84 | . 84 . . Average Temperature 23 | . 23 . . Received Heat Transfer 381 | . 363 18 . Siege Activations . | . . . . Robots Corrupted . | . . . . Combat Hostiles . | . . . . Parts Fried . | . . . . Impact Corruptions . | . . . . Robots Melted . | . . . . Combat Hostiles . | . . . . Parts Melted . | . . . . Heat Transferred 450 | . 450 . . Parts Sabotaged . | . . . . Parts Stolen . | . . . . Parts Stripped . | . . . . Power Chain Reactions . | . . . . Alert | -11 -10 -10 -9 ------- Run | Yrd Mat Sub Rec Peak Influence 100 | . 100 . 90 Initial 45 | . . . 45 Average 57 | . 60 . 50 Maximum Alert Level . | . . . . Low Security (%) 100 | 100 100 . 100 Level 1 . | . . . . Level 2 . | . . . . Level 3 . | . . . . Level 4 . | . . . . Level 5 . | . . . . High Security . | . . . . Max Security . | . . . . Squads Dispatched 1 | . 1 . . Investigation 1 | . 1 . . Extermination . | . . . . Reinforcement . | . . . . Assault . | . . . . Garrison . | . . . . Intercept . | . . . . Searches Triggered . | . . . . Construction Impeded . | . . . . Haulers Reinforced . | . . . . Active Scanning Responses . | . . . . Cargo Convoy Interrupts . | . . . . Stealth | -11 -10 -10 -9 --------- Run | Yrd Mat Sub Rec Distress Signals 2 | . 1 . 1 Communications Jammed . | . . . . Distress Signals . | . . . . Times Spotted 21 | . 11 7 3 Peak Tracking Total 3 | . 3 3 2 Tactical Retreats 2 | . . 1 1 Traps | -11 -10 -10 -9 ------- Run | Yrd Mat Sub Rec Traps Triggered 2 | . 2 . . Indirectly . | . . . . Trap Hack Attempts . | . . . . Triggered . | . . . . Disarmed . | . . . . Reprogrammed . | . . . . Reused . | . . . . Traps Extracted . | . . . . Installed . | . . . . Triggered . | . . . . Machines | -11 -10 -10 -9 ---------- Run | Yrd Mat Sub Rec Machines Disabled . | . . . . Max in Single Turn . | . . . . Machines Repaired . | . . . . Machines Dismantled . | . . . . Machines Sabotaged . | . . . . Overloaded Fab Kills . | . . . . Hacking | -11 -10 -10 -9 --------- Run | Yrd Mat Sub Rec Machines Accessed 4 | . 3 . 1 Terminals 4 | . 3 . 1 Fabricators . | . . . . Repair Stations . | . . . . Recycling Units . | . . . . Scanalyzers . | . . . . Garrison Access . | . . . . Total Hacks 7 | . 6 . 1 Successful 2 | . 2 . . Failed 5 | . 4 . 1 Catastrophic 3 | . 2 . 1 Database Lockouts . | . . . . Manual . | . . . . Terminals 7 | . 6 . 1 Fabricators . | . . . . Repair Stations . | . . . . Recycling Units . | . . . . Scanalyzers . | . . . . Garrison Access . | . . . . Terminal Hacks 2 | . 2 . . Dispatch Records 1 | . 1 . . Zone Layout 1 | . 1 . . Fabricator Hacks . | . . . . Repair Station Hacks . | . . . . Recycling Unit Hacks . | . . . . Scanalyzer . | . . . . Garrison Access Hacks . | . . . . Unauthorized Hacks . | . . . . Terminals . | . . . . Fabricators . | . . . . Repair Stations . | . . . . Recycling Units . | . . . . Scanalyzers . | . . . . Garrison Access . | . . . . Data Cores Recovered 1 | . 1 . . Used 1 | . 1 . . Hacking Detections 4 | . 3 . 1 Full Trace Events 1 | . 1 . . Feedback Events . | . . . . Feedback Blocked . | . . . . Robot Schematics Acquired . | . . . . Robots Built . | . . . . Authchips . | . . . . Time . | . . . . Total Robot Build Rating . | . . . . Part Schematics Acquired . | . . . . Parts Built . | . . . . Authchips . | . . . . Time . | . . . . Total Part Build Rating . | . . . . Parts Repaired . | . . . . Time . | . . . . Parts Recycled . | . . . . Recycled Matter . | . . . . Retrieved Matter . | . . . . Retrieved Components . | . . . . Parts Scanalyzed . | . . . . Part Schematics Acquired . | . . . . Parts Damaged . | . . . . Bothacking | -11 -10 -10 -9 ------------ Run | Yrd Mat Sub Rec Used RIF Installer . | . . . . Robots Hacked . | . . . . Non-combat . | . . . . Combat . | . . . . Robot Hacks Applied . | . . . . Relay Couplers Released . | . . . . Fabnet Peak Effective % . | . . . . Robots Rewired . | . . . . Allies Hacked . | . . . . Hacks Repelled . | . . . . Allies | -11 -10 -10 -9 -------- Run | Yrd Mat Sub Rec Total Allies . | . . . . Largest Group . | . . . . Highest-Rated Group . | . . . . Highest-Rated Ally . | . . . . Total Orders . | . . . . Ally Attacks . | . . . . Total Damage . | . . . . Kills . | . . . . Allies Corrupted . | . . . . Allies Melted . | . . . . Intel | -11 -10 -10 -9 ------- Run | Yrd Mat Sub Rec Robot Analysis Total . | . . . . Derelict Logs Recovered . | . . . . Drone Launches . | . . . . Drone Recoveries . | . . . . Exploration | -11 -10 -10 -9 ------------- Run | Yrd Mat Sub Rec Turns Passed 1030 | 9 675 154 192 Spaces Moved 922 | 18 577 116 211 Core 210 | 18 43 . 149 Treads . | . . . . Legs 293 | . 115 116 62 Wheels . | . . . . Hover 419 | . 419 . . Flight . | . . . . Fastest Speed 50 | 50 50 120 50 Average Speed 86 | 50 79 120 90 Slowest Speed 120 | 50 120 120 120 Overloaded Moves . | . . . . Propulsion Burnouts . | . . . . Robots Hopped . | . . . . Cave-ins Triggered . | . . . . Exploration Rate (%) 28 | 3 61 7 42 Regions Visited 3 Branch Regions 2 Pre-discovered Areas . | . . . . Known Exits Taken . | . . . . Unknown Exits Taken 3 | 1 1 1 . Scrap Searched . | . . . . Spaces Dug . | . . . . Terrain Destroyed 1 | . 1 . . Melee . | . . . . Projectile 1 | . 1 . . AOE . | . . . . Terrain Rammed . | . . . . Walls Destroyed . | . . . . Machines Disabled . | . . . . Actions | -11 -10 -10 -9 --------- Run | Yrd Mat Sub Rec Total 1046 | 17 685 131 213 Wait 33 | . 17 16 . Move 919 | 17 576 115 211 Hop . | . . . . Pick Up 8 | . 8 . . Fast Attach 9 | . 9 . . Attach . | . . . . Detach . | . . . . Swap 12 | . 12 . . Drop 4 | . 2 . 2 Fire 59 | . 59 . . Melee . | . . . . Ram 2 | . 2 . . Kick . | . . . . Crush . | . . . . Escape Stasis . | . . . . Rewire . | . . . . Trap . | . . . . Miscellaneous . | . . . . Route ------- -11/Scrapyard -10/Materials (discovered 3 exits: [*Mat] / [*Min] / [*Sub]) -10/Subcaves -9/Recycling History --------- Turn | Location | Event 2 | -11/Scrapyard | Discovered new exit (range 16) 10 | -11/Scrapyard | Entered Materials 43 | -10/Materials | Discovered new exit (range 13) 232 | -10/Materials | Discovered new exit (range 16) 314 | -10/Materials | Build established: Mutant 535 | -10/Materials | Core integrity fell below 50% 664 | -10/Materials | Discovered new exit (range 15) 672 | -10/Materials | Core integrity fell below 20% 685 | -10/Materials | Entered Subcaves 703 | -10/Subcaves | Shifting Twisted Machinery released Sub. Monowheel 704 | -10/Subcaves | Shifting Twisted Machinery released Sub. Power Source 711 | -10/Subcaves | Lost 3 parts (1n2w) 762 | -10/Subcaves | Discovered new exit (range 16) 820 | -10/Subcaves | Ambushed by swarm of Subdwellers 839 | -10/Subcaves | Entered Recycling 840 | -9/Recycling | Met a Zionite searching for Scraptown 858 | -9/Recycling | Lost 3 allies 1031 | -9/Recycling | Destroyed by P-60 Hacker with Shock Rifle Last Messages --------------- M0-5GG(z): "You there! You wouldn't happen to know where Scraptown is, do you?" M0-5GG(z): "I've heard great things about that place, but almost no one seems to know where to find it, only that you access it somewhere from Recycling here." M0-5GG(z): "Anyway I've been here searching too long already, time to slink back to the caves before I'm caught. You'd best do the same." Connecting with Terminal... Current location identified: Recycling System corrupted: Aluminum Leg rejected. R-06 Scavenger collects Aluminum Leg. System corrupted: Matter fused (-10). Discarded Hacking Suite. Dropped Sml. Storage Unit. R-06 Scavenger collects Seismic Detector. R-06 Scavenger collects Mining Laser. R-06 Scavenger collects VTOL Module. #UVWJP,PTYJEU7HXQ&MC,/N=, Map ----- +----------------------------------------------------+ | ?????????????????# ##########+############+### | | ?????????????????# | | ?????????????????# | | ?????????????????# | | ?????????????????### ####################[ [## | | ???????????????????# #??????????????????# [[#? | | ???????????????????# #??????????????????#####? | | ???????????????????# #???????????????????????? | | ??????????????????## ##############??????????? | | ??????????????????# ?????????? | | ??????????????????/ ?????????? | | ??????????????????# ?????????? | | ??????????????????#p ###########+#??????????? | | ??????????????????# #??????????????????????? | | ??????????????????# #??????????????????????? | | ??????????????????# #??????????????????????? | | ??????????????????# #??????????????????????? | | ??????????????????# #??????????????????????? | | ??????????????????# #??????????????????????? | | ??????????????????# #??????????????????????? | | ??????????????????# #??????????????????????? | | ?????????????????## ##?????????????????????? | | ?????????????????# #?????????????????????? | | ?????????????????# #?????????????????????? | | ?????????????????# T #?????????????????????? | | ?????????????????# @ #?????????????????????? | | ?????????????????# #?????????????????????? | | ????????????########+########????????????????? | | ????????????# #???????????????? | | ????????????# #???????????????? | | ????????????# [ % #???????????????? | | ????????????# #???????????????? | | ????????????# #???????????????? | | ????????????# = #???????????????? | | ????????????# = #???????????????? | | ???????????# ! #???????????????? | | ???????????## #???????????????? | | ????????????##################???????????????? | | ?????????????????????????????????????????????? | | ?????????????????????????????????????????????? | | ?????????????????????????????????????????????? | | ?????????????????????????????????????????????? | | ?????????????????????????????????????????????? | | ?????????????????????????????????????????????? | | ?????????????????????????????????????????????? | | ?????????????????????????????????????????????? | | ?????????????????????????????????????????????? | | ?????????????????????????????????????????????? | | ?????????????????????????????????????????????? | | ?????????????????????????????????????????????? | +----------------------------------------------------+ Best States ------------- Heat Dissipation 25 Energy Generation 10 Energy Capacity 125 Matter Stores 236 Matter Capacity 300 Sight Range 16 Terrain Scan Density 10 Evasion (%) 55 Offensive Hacking 10 Item Schematics ----------------- None Robot Schematics ------------------ None Fabricated ------------ Nothing Alien Tech Used ----------------- None Achievements -------------- Fist Fight Challenges ------------ None Game ------ Seed TargetAlloyBrace Manual? 0 Play Time 00:17:24 Cumulative 16.6 hours Start 2024.11.10 @ 06:14:06 End 2024.11.10 @ 06:32:51 Sessions 1 Manual Loads 0 Difficulty Rogue Special Mode None Game No. 7 Rogue 7 Adventurer 0 Explorer 0 Win Type - Total 0 Types 0/0/0/0/0/0/0/0/0 Lore% 7 Gallery% 16 Achievement% 16 Wizard Run 0 Options --------- Layout 1 ASCII 0 Keyboard 0 Movement Arrows Keybinds 0 Fullscreen 1 Font 24/Smallcaps Map View 50x35 Zoom Use 0% Tactical HUD 0 Map Filters NONE Filters NONE Steam 1 RUN: 9b318dd9-36c1-40e8-9668-1ae9151e292a